fUSD/lending_fUSD_20240426
["ID","MTS","AMOUNT","RATE_DAILY","PERIOD"]
[323702407,1714168256711,-565.29,0.00013424,2]
[323702408,1714168256721,-500.0,0.00013424,2]
[323702409,1714168256732,-6336.33,0.00013424,2]
[323702410,1714168256740,-500.0,0.00013424,2]
[323702411,1714168256750,-548.34,0.00013424,2]
[323702412,1714168256759,-500.0,0.00013424,2]
[323702413,1714168256768,-540.34,0.00013424,2]
[323702414,1714168256776,-619.77,0.00013424,2]
[323702415,1714168256786,-1304.73,0.00013424,2]
[323702416,1714168256795,-777.79,0.00013424,2]
[323702417,1714168256804,-4047.72,0.00013424,2]
[323702418,1714168256814,-1505.07,0.00013424,2]
[323702419,1714168256823,-1039.78,0.00013424,2]
[323702420,1714168256832,-500.0,0.00013424,2]
[323702421,1714168256841,-500.0,0.00013424,2]
[323702422,1714168256850,-1828.28,0.00013424,2]
[323702423,1714168256860,-1743.91,0.00013424,2]
[323702424,1714168256869,-540.43,0.00013424,2]
[323702425,1714168256877,-500.0,0.00013424,2]
[323702426,1714168256886,-500.0,0.00013424,2]
[323702427,1714168256895,-1023.77,0.00013424,2]
[323702428,1714168256905,-342.91865525,0.00013424,2]
[323702429,1714168256914,-3711.31,0.00013425,2]
[323702430,1714168256924,-8404.74,0.00013425,2]
[323702431,1714168256933,-160.634,0.00013574,2]
[323702432,1714168256944,-208.0,0.00013574,2]
[323702433,1714168256953,-152.898,0.00013574,2]
[323702434,1714168256961,-193.955,0.00013574,2]
[323702435,1714168256970,-272.158,0.00013574,2]
[323702436,1714168256979,-200.0,0.00013574,2]
[323702437,1714168256988,-154.096,0.00013574,2]
[323702438,1714168256997,-152.293,0.00013574,2]
[323702439,1714168257007,-157.636,0.00013574,2]
[323702440,1714168257017,-275.0,0.00013574,2]
[323702441,1714168257026,-160.763,0.00013574,2]
[323702442,1714168257035,-158.762,0.00013574,2]
[323702443,1714168257044,-400.0,0.00013658,2]
[323702444,1714168257053,-537.74421208,0.00013698,2]
[323702445,1714168257062,-375.0,0.00013698,2]
[323702446,1714168257071,-511.0,0.00013698,2]
[323702447,1714168257081,-500.0,0.00013698,2]
[323702448,1714168257091,-500.0,0.00013698,2]
[323702449,1714168257101,-500.0,0.00013698,2]
[323702450,1714168257110,-500.0,0.00013698,2]
[323702451,1714168257120,-500.0,0.00013698,2]
[323702452,1714168257130,-500.0,0.00013698,2]
[323702453,1714168257140,-500.0,0.00013698,2]
[323702454,1714168257150,-500.0,0.00013698,2]
[323702455,1714168257161,-500.0,0.00013698,2]
[323702456,1714168257170,-500.0,0.00013698,2]
[323702457,1714168257180,-500.0,0.00013698,2]
[323702458,1714168257191,-659.0,0.00013698,2]
[323702459,1714168257201,-500.0,0.00013698,2]
[323702460,1714168257211,-500.0,0.00013698,2]
[323702461,1714168257220,-500.0,0.00013698,2]
[323702462,1714168257232,-709.11,0.00013698,2]
[323702463,1714168257243,-573.99,0.00013698,2]
[323702464,1714168257253,-500.0,0.00013698,2]
[323702465,1714168257264,-500.0,0.00013698,2]
[323702466,1714168257274,-500.0,0.00013698,2]
[323702467,1714168257284,-500.0,0.00013698,2]
[323702468,1714168257294,-500.0,0.00013698,2]
[323702469,1714168257304,-6256.15,0.00013698,2]
[323702470,1714168257314,-500.0,0.00013698,2]
[323702471,1714168257323,-763.76,0.00013698,2]
[323702472,1714168257332,-537.61,0.00013698,2]
[323702473,1714168257342,-500.0,0.00013698,2]
[323702474,1714168257352,-500.0,0.00013698,2]
[323702475,1714168257362,-513.68,0.00013698,2]
[323702476,1714168257372,-1048.28,0.00013698,2]
[323702477,1714168257381,-270.1,0.00013698,2]
[323702478,1714168257391,-500.0,0.00013698,2]
[323702479,1714168257401,-500.0,0.00013698,2]
[323702480,1714168257411,-2322.81,0.00013698,2]
[323702481,1714168257421,-998.37,0.00013698,2]
[323702482,1714168257430,-500.0,0.00013698,2]
[323702483,1714168257440,-557.8,0.00013698,2]
[323702484,1714168257449,-529.95,0.00013698,2]
[323702485,1714168257458,-535.33,0.00013698,2]
[323702486,1714168257468,-2084.26,0.00013698,2]
[323702487,1714168257478,-500.0,0.00013698,2]
[323702488,1714168257488,-500.0,0.00013698,2]
[323702489,1714168257498,-500.0,0.00013698,2]
[323702490,1714168257508,-500.0,0.00013698,2]
[323702491,1714168257519,-500.0,0.00013698,2]
[323702492,1714168257528,-500.0,0.00013698,2]
[323702493,1714168257538,-500.0,0.00013698,2]
[323702494,1714168257548,-500.0,0.00013698,2]
[323702495,1714168257558,-500.0,0.00013698,2]
[323702496,1714168257567,-500.0,0.00013698,2]
[323702497,1714168257578,-630.65,0.00013698,2]
[323702498,1714168257587,-583.6,0.00013698,2]
[323702499,1714168257598,-500.0,0.00013698,2]
[323702500,1714168257608,-500.0,0.00013698,2]
[323702501,1714168257619,-500.0,0.00013698,2]
[323702502,1714168257630,-969.38,0.00013698,2]
[323702503,1714168257639,-1520.72,0.00013698,2]
[323702504,1714168257650,-500.0,0.00013698,2]
[323702505,1714168257659,-500.0,0.00013698,2]
[323702506,1714168257669,-2307.71,0.00013698,2]
[323702507,1714168257679,-1213.91,0.00013698,2]
[323702508,1714168257689,-500.0,0.00013698,2]
[323702509,1714168257699,-21926.28,0.00013698,2]
[323702510,1714168257709,-500.0,0.00013698,2]
[323702511,1714168257719,-519.31,0.00013698,2]
[323702512,1714168257729,-634.87,0.00013698,2]
[323702513,1714168257740,-623.75,0.00013698,2]
[323702514,1714168257750,-565.29,0.00013698,2]
[323702515,1714168257759,-500.0,0.00013698,2]
[323702516,1714168257770,-6336.33,0.00013698,2]
[323702517,1714168257780,-500.0,0.00013698,2]
[323702518,1714168257790,-548.34,0.00013698,2]
[323702519,1714168257800,-500.0,0.00013698,2]
[323702520,1714168257810,-540.34,0.00013698,2]
[323702521,1714168257822,-619.77,0.00013698,2]
[323702522,1714168257832,-1304.73,0.00013698,2]
[323702523,1714168257842,-777.79,0.00013698,2]
[323702524,1714168257851,-4047.72,0.00013698,2]
[323702525,1714168257861,-1505.07,0.00013698,2]
[323702526,1714168257870,-1039.78,0.00013698,2]
[323702527,1714168257880,-500.0,0.00013698,2]
[323702528,1714168257891,-500.0,0.00013698,2]
[323702529,1714168257903,-1828.28,0.00013698,2]
[323702530,1714168257912,-1743.91,0.00013698,2]
[323702531,1714168257922,-540.43,0.00013698,2]
[323702532,1714168257931,-500.0,0.00013698,2]
[323702533,1714168257941,-500.0,0.00013698,2]
[323702534,1714168257950,-1023.77,0.00013698,2]
[323702535,1714168257959,-1488.37,0.00013698,2]
[323702536,1714168257969,-200.0,0.00013699,2]
[323702537,1714168257978,-1000.0,0.00013699,2]
[323702538,1714168257987,-1000.0,0.00013699,2]
[323702539,1714168257997,-1000.0,0.00013699,2]
[323702540,1714168258008,-1000.0,0.00013699,2]
[323702541,1714168258019,-1000.0,0.00013699,2]
[323702542,1714168258028,-1000.0,0.00013699,2]
[323702543,1714168258037,-1000.0,0.00013699,2]
[323702544,1714168258046,-1000.0,0.00013699,2]
[323702545,1714168258057,-1000.0,0.00013699,2]
[323702546,1714168258066,-1000.0,0.00013699,2]
[323702547,1714168258075,-1000.0,0.00013699,2]
[323702548,1714168258085,-1000.0,0.00013699,2]
[323702549,1714168258094,-1000.0,0.00013699,2]
[323702550,1714168258104,-1000.0,0.00013699,2]
[323702551,1714168258114,-1000.0,0.00013699,2]
[323702552,1714168258124,-1000.0,0.00013699,2]
[323702553,1714168258133,-1000.0,0.00013699,2]
[323702554,1714168258143,-1000.0,0.00013699,2]
[323702555,1714168258153,-1000.0,0.00013699,2]
[323702556,1714168258162,-1000.0,0.00013699,2]
[323702557,1714168258172,-1000.0,0.00013699,2]
[323702558,1714168258182,-1000.0,0.00013699,2]
[323702559,1714168258193,-1000.0,0.00013699,2]
[323702560,1714168258203,-1000.0,0.00013699,2]
[323702561,1714168258214,-1000.0,0.00013699,2]
[323702562,1714168258225,-1000.0,0.00013699,2]
[323702563,1714168258235,-1000.0,0.00013699,2]
[323702564,1714168258245,-1000.0,0.00013699,2]
[323702565,1714168258257,-1000.0,0.00013699,2]
[323702566,1714168258268,-1000.0,0.00013699,2]
[323702567,1714168258278,-1000.0,0.00013699,2]
[323702568,1714168258287,-1000.0,0.00013699,2]
[323702569,1714168258297,-1000.0,0.00013699,2]
[323702570,1714168258307,-1000.0,0.00013699,2]
[323702571,1714168258317,-1000.0,0.00013699,2]
[323702572,1714168258327,-1000.0,0.00013699,2]
[323702573,1714168258336,-1000.0,0.00013699,2]
[323702574,1714168258346,-1000.0,0.00013699,2]
[323702575,1714168258356,-1000.0,0.00013699,2]
[323702576,1714168258365,-1000.0,0.00013699,2]
[323702577,1714168258375,-1000.0,0.00013699,2]
[323702578,1714168258385,-1000.0,0.00013699,2]
[323702579,1714168258394,-1000.0,0.00013699,2]
[323702580,1714168258405,-1000.0,0.00013699,2]
[323702581,1714168258415,-1000.0,0.00013699,2]
[323702582,1714168258425,-1000.0,0.00013699,2]
[323702583,1714168258435,-1000.0,0.00013699,2]
[323702584,1714168258445,-1000.0,0.00013699,2]
[323702585,1714168258455,-1000.0,0.00013699,2]
[323702586,1714168258465,-1000.0,0.00013699,2]
[323702587,1714168258475,-1000.0,0.00013699,2]
[323702588,1714168258485,-1000.0,0.00013699,2]
[323702589,1714168258495,-1000.0,0.00013699,2]
[323702590,1714168258507,-638.0,0.00013699,2]
[323702591,1714168258517,-200.0,0.00013699,2]
[323702592,1714168258527,-2751.0,0.00013699,2]
[323702593,1714168258538,-250.0,0.00013699,2]
[323702594,1714168258547,-341.99,0.00013699,2]
[323702595,1714168258557,-500.0,0.00013699,2]
[323702596,1714168258568,-1000.0,0.00013699,2]
[323702597,1714168258578,-150.0,0.00013699,2]
[323702598,1714168258587,-630.46,0.00013971,2]
[323702599,1714168258597,-500.0,0.00013972,2]
[323702600,1714168258607,-500.0,0.00013972,2]
[323702601,1714168258618,-500.0,0.00013972,2]
[323702602,1714168258628,-500.0,0.00013972,2]
[323702603,1714168258638,-500.0,0.00013972,2]
[323702604,1714168258648,-500.0,0.00013972,2]
[323702605,1714168258659,-500.0,0.00013972,2]
[323702606,1714168258668,-610.13905897,0.00013972,2]
[323702607,1714168258678,-500.0,0.00013972,2]
[323702608,1714168258689,-500.0,0.00013972,2]
[323702609,1714168258700,-500.0,0.00013972,2]
[323702610,1714168258710,-500.0,0.00013972,2]
[323702611,1714168258720,-500.0,0.00013972,2]
[323702612,1714168258731,-479.77641697,0.00013972,2]
[323702613,1714168258740,-709.11,0.00013972,2]
[323702614,1714168258749,-573.99,0.00013972,2]
[323702615,1714168258759,-264.68,0.00013972,2]
[323702616,1714168258769,-577.09260191,0.00013972,2]
[323702617,1714168258779,-500.0,0.00013972,2]
[323702618,1714168258790,-500.0,0.00013972,2]
[323702619,1714168258799,-500.0,0.00013972,2]
[323702620,1714168258809,-6256.15,0.00013972,2]
[323702621,1714168258819,-500.0,0.00013972,2]
[323702622,1714168258828,-763.76,0.00013972,2]
[323702623,1714168258838,-537.61,0.00013972,2]
[323702624,1714168258848,-500.0,0.00013972,2]
[323702625,1714168258858,-500.0,0.00013972,2]
[323702626,1714168258867,-513.68,0.00013972,2]
[323702627,1714168258877,-1048.28,0.00013972,2]
[323702628,1714168258887,-500.0,0.00013972,2]
[323702629,1714168258897,-500.0,0.00013972,2]
[323702630,1714168258908,-2322.81,0.00013972,2]
[323702631,1714168258918,-998.37,0.00013972,2]
[323702632,1714168258927,-500.0,0.00013972,2]
[323702633,1714168258936,-557.8,0.00013972,2]
[323702634,1714168258946,-529.95,0.00013972,2]
[323702635,1714168258955,-535.33,0.00013972,2]
[323702636,1714168258965,-2084.26,0.00013972,2]
[323702637,1714168258974,-500.0,0.00013972,2]
[323702638,1714168258984,-500.0,0.00013972,2]
[323702639,1714168258993,-500.0,0.00013972,2]
[323702640,1714168259004,-500.0,0.00013972,2]
[323702641,1714168259017,-500.0,0.00013972,2]
[323702642,1714168259027,-500.0,0.00013972,2]
[323702643,1714168259037,-247.94327603,0.00013972,2]
[323702644,1714168259046,-500.0,0.00013972,2]
[323702645,1714168259057,-500.0,0.00013972,2]
[323702646,1714168259067,-500.0,0.00013972,2]
[323702647,1714168259077,-630.65,0.00013972,2]
[323702648,1714168259089,-583.6,0.00013972,2]
[323702649,1714168259100,-500.0,0.00013972,2]
[323702650,1714168259109,-255.13135617,0.00013972,2]
[323702651,1714168259119,-500.0,0.00013972,2]
[323702652,1714168259128,-969.38,0.00013972,2]
[323702653,1714168259138,-1520.72,0.00013972,2]
[323702654,1714168259148,-500.0,0.00013972,2]
[323702655,1714168259158,-500.0,0.00013972,2]
[323702656,1714168259168,-2307.71,0.00013972,2]
[323702657,1714168259178,-1213.91,0.00013972,2]
[323702658,1714168259188,-500.0,0.00013972,2]
[323702659,1714168259198,-21926.28,0.00013972,2]
[323702660,1714168259207,-500.0,0.00013972,2]
[323702661,1714168259217,-519.31,0.00013972,2]
[323702662,1714168259227,-634.87,0.00013972,2]
[323702663,1714168259237,-623.75,0.00013972,2]
[323702664,1714168259247,-565.29,0.00013972,2]
[323702665,1714168259257,-500.0,0.00013972,2]
[323702666,1714168259267,-6336.33,0.00013972,2]
[323702667,1714168259277,-432.53594504,0.00013972,2]
[323702668,1714168259287,-548.34,0.00013972,2]
[323702669,1714168259297,-500.0,0.00013972,2]
[323702670,1714168259307,-540.34,0.00013972,2]
[323702671,1714168259317,-619.77,0.00013972,2]
[323702672,1714168259326,-1304.73,0.00013972,2]
[323702673,1714168259337,-777.79,0.00013972,2]
[323702674,1714168259348,-4047.72,0.00013972,2]
[323702675,1714168259359,-1505.07,0.00013972,2]
[323702676,1714168259369,-1039.78,0.00013972,2]
[323702677,1714168259379,-500.0,0.00013972,2]
[323702678,1714168259389,-487.97624031,0.00013972,2]
[323702679,1714168259399,-1828.28,0.00013972,2]
[323702680,1714168259408,-1743.91,0.00013972,2]
[323702681,1714168259418,-540.43,0.00013972,2]
[323702682,1714168259427,-500.0,0.00013972,2]
[323702683,1714168259437,-500.0,0.00013972,2]
[323702684,1714168259446,-1023.77,0.00013972,2]
[323702685,1714168259457,-2387.34860705,0.00014,2]
[323702686,1714168259466,-155.35098395,0.00014,2]
[323702687,1714168259475,-600.0,0.00014133,2]
[323702688,1714168259484,-500.0,0.00014246,2]
[323702689,1714168259494,-500.0,0.00014246,2]
[323702690,1714168259504,-500.0,0.00014246,2]
[323702691,1714168259513,-500.0,0.00014246,2]
[323702692,1714168259523,-500.0,0.00014246,2]
[323702693,1714168259533,-500.0,0.00014246,2]
[323702694,1714168259542,-500.0,0.00014246,2]
[323702695,1714168259553,-263.46995652,0.00014246,2]
[323702696,1714168259562,-500.0,0.00014246,2]
[323702697,1714168259572,-500.0,0.00014246,2]
[323702698,1714168259581,-500.0,0.00014246,2]
[323702699,1714168259591,-500.0,0.00014246,2]
[323702700,1714168259600,-709.11,0.00014246,2]
[323702701,1714168259612,-573.99,0.00014246,2]
[323702702,1714168259623,-500.0,0.00014246,2]
[323702703,1714168259633,-180.55,0.00014246,2]
[323702704,1714168259642,-500.0,0.00014246,2]
[323702705,1714168259653,-6256.15,0.00014246,2]
[323702706,1714168259662,-500.0,0.00014246,2]
[323702707,1714168259892,-763.76,0.00014246,2]
[323702708,1714168259903,-537.61,0.00014246,2]
[323702709,1714168259913,-500.0,0.00014246,2]
[323702710,1714168259923,-500.0,0.00014246,2]
[323702711,1714168259932,-513.68,0.00014246,2]
[323702712,1714168259943,-1048.28,0.00014246,2]
[323702713,1714168259953,-500.0,0.00014246,2]
[323702714,1714168259963,-500.0,0.00014246,2]
[323702715,1714168259973,-998.37,0.00014246,2]
[323702716,1714168259983,-2322.81,0.00014246,2]
[323702717,1714168259993,-500.0,0.00014246,2]
[323702718,1714168260003,-557.8,0.00014246,2]
[323702719,1714168260016,-529.95,0.00014246,2]
[323702720,1714168260026,-535.33,0.00014246,2]
[323702721,1714168260036,-2084.26,0.00014246,2]
[323702722,1714168260046,-500.0,0.00014246,2]
[323702723,1714168260057,-500.0,0.00014246,2]
[323702724,1714168260067,-500.0,0.00014246,2]
[323702725,1714168260078,-500.0,0.00014246,2]
[323702726,1714168260089,-500.0,0.00014246,2]
[323702727,1714168260099,-500.0,0.00014246,2]
[323702728,1714168260109,-500.0,0.00014246,2]
[323702729,1714168260119,-500.0,0.00014246,2]
[323702730,1714168260128,-500.0,0.00014246,2]
[323702731,1714168260138,-630.65,0.00014246,2]
[323702732,1714168260147,-583.6,0.00014246,2]
[323702733,1714168260157,-500.0,0.00014246,2]
[323702734,1714168260168,-494.69706385,0.00014246,2]
[323702735,1714168260179,-969.38,0.00014246,2]
[323702736,1714168260188,-1520.72,0.00014246,2]
[323702737,1714168260198,-500.0,0.00014246,2]
[323702738,1714168260208,-2307.71,0.00014246,2]
[323702739,1714168260218,-500.0,0.00014246,2]
[323702740,1714168260227,-1213.91,0.00014246,2]
[323702741,1714168260237,-500.0,0.00014246,2]
[323702742,1714168260247,-21926.28,0.00014246,2]
[323702743,1714168260257,-604.91138339,0.00014246,2]
[323702744,1714168260267,-519.31,0.00014246,2]
[323702745,1714168260277,-634.87,0.00014246,2]
[323702746,1714168260286,-623.75,0.00014246,2]
[323702747,1714168260296,-565.29,0.00014246,2]
[323702748,1714168260305,-500.0,0.00014246,2]
[323702749,1714168260315,-6336.33,0.00014246,2]
[323702750,1714168260324,-548.34,0.00014246,2]
[323702751,1714168260334,-500.0,0.00014246,2]
[323702752,1714168260343,-540.34,0.00014246,2]
[323702753,1714168260353,-619.77,0.00014246,2]
[323702754,1714168260362,-1304.73,0.00014246,2]
[323702755,1714168260372,-777.79,0.00014246,2]
[323702756,1714168260382,-4047.72,0.00014246,2]
[323702757,1714168260392,-1505.07,0.00014246,2]
[323702758,1714168260403,-1039.78,0.00014246,2]
[323702759,1714168260413,-500.0,0.00014246,2]
[323702760,1714168260423,-1828.28,0.00014246,2]
[323702761,1714168260433,-1743.91,0.00014246,2]
[323702762,1714168260442,-540.43,0.00014246,2]
[323702763,1714168260451,-500.0,0.00014246,2]
[323702764,1714168260462,-500.0,0.00014246,2]
[323702765,1714168260471,-1023.77,0.00014246,2]
[323702766,1714168260481,-250.0,0.00014247,2]
[323702767,1714168260493,-184.18,0.00014338,2]
[323702768,1714168260503,-750.0,0.00014383,10]
[323702769,1714168260512,-511.0,0.00014383,2]
[323702770,1714168260522,-659.0,0.00014383,2]
[323702771,1714168260532,-500.0,0.0001452,2]
[323702772,1714168260543,-500.0,0.0001452,2]
[323702773,1714168260553,-500.0,0.0001452,2]
[323702774,1714168260563,-500.0,0.0001452,2]
[323702775,1714168260572,-500.0,0.0001452,2]
[323702776,1714168260581,-500.0,0.0001452,2]
[323702777,1714168260591,-500.0,0.0001452,2]
[323702778,1714168260600,-500.0,0.0001452,2]
[323702779,1714168260610,-500.0,0.0001452,2]
[323702780,1714168260619,-500.0,0.0001452,2]
[323702781,1714168260629,-500.0,0.0001452,2]
[323702782,1714168260638,-709.11,0.0001452,2]
[323702783,1714168260648,-573.99,0.0001452,2]
[323702784,1714168260658,-500.0,0.0001452,2]
[323702785,1714168260667,-500.0,0.0001452,2]
[323702786,1714168260676,-6256.15,0.0001452,2]
[323702787,1714168260686,-500.0,0.0001452,2]
[323702788,1714168260695,-763.76,0.0001452,2]
[323702789,1714168260704,-537.61,0.0001452,2]
[323702790,1714168260713,-500.0,0.0001452,2]
[323702791,1714168260722,-500.0,0.0001452,2]
[323702792,1714168260731,-513.68,0.0001452,2]
[323702793,1714168260740,-1048.28,0.0001452,2]
[323702794,1714168260749,-500.0,0.0001452,2]
[323702795,1714168260759,-500.0,0.0001452,2]
[323702796,1714168260768,-998.37,0.0001452,2]
[323702797,1714168260778,-2322.81,0.0001452,2]
[323702798,1714168260787,-495.57540654,0.0001452,2]
[323702799,1714168260796,-557.8,0.0001452,2]
[323702800,1714168260805,-529.95,0.0001452,2]
[323702801,1714168260815,-535.33,0.0001452,2]
[323702802,1714168260824,-2084.26,0.0001452,2]
[323702803,1714168260834,-500.0,0.0001452,2]
[323702804,1714168260843,-500.0,0.0001452,2]
[323702805,1714168260853,-195.54,0.0001452,2]
[323702806,1714168260863,-500.0,0.0001452,2]
[323702807,1714168260871,-500.0,0.0001452,2]
[323702808,1714168260881,-500.0,0.0001452,2]
[323702809,1714168260890,-500.0,0.0001452,2]
[323702810,1714168260900,-500.0,0.0001452,2]
[323702811,1714168260910,-500.0,0.0001452,2]
[323702812,1714168260919,-630.65,0.0001452,2]
[323702813,1714168260928,-583.6,0.0001452,2]
[323702814,1714168260937,-500.0,0.0001452,2]
[323702815,1714168260947,-969.38,0.0001452,2]
[323702816,1714168260957,-1520.72,0.0001452,2]
[323702817,1714168260966,-500.0,0.0001452,2]
[323702818,1714168260975,-2307.71,0.0001452,2]
[323702819,1714168260986,-500.0,0.0001452,2]
[323702820,1714168260995,-1213.91,0.0001452,2]
[323702821,1714168261005,-500.0,0.0001452,2]
[323702822,1714168261015,-21926.28,0.0001452,2]
[323702823,1714168261026,-519.31,0.0001452,2]
[323702824,1714168261035,-623.75,0.0001452,2]
[323702825,1714168261044,-634.87,0.0001452,2]
[323702826,1714168261054,-565.29,0.0001452,2]
[323702827,1714168261064,-500.0,0.0001452,2]
[323702828,1714168261073,-6336.33,0.0001452,2]
[323702829,1714168261082,-548.34,0.0001452,2]
[323702830,1714168261091,-500.0,0.0001452,2]
[323702831,1714168261100,-540.34,0.0001452,2]
[323702832,1714168261110,-619.77,0.0001452,2]
[323702833,1714168261119,-1304.73,0.0001452,2]
[323702834,1714168261129,-777.79,0.0001452,2]
[323702835,1714168261138,-4047.72,0.0001452,2]
[323702836,1714168261148,-1505.07,0.0001452,2]
[323702837,1714168261158,-1039.78,0.0001452,2]
[323702838,1714168261167,-500.0,0.0001452,2]
[323702839,1714168261176,-1828.28,0.0001452,2]
[323702840,1714168261185,-1743.91,0.0001452,2]
[323702841,1714168261193,-540.43,0.0001452,2]
[323702842,1714168261202,-500.0,0.0001452,2]
[323702843,1714168261211,-500.0,0.0001452,2]
[323702844,1714168261219,-1023.77,0.0001452,2]
[323702845,1714168261228,-166.88,0.00014586,2]
[323702846,1714168261236,-3700.602,0.00014616,2]
[323702847,1714168261244,-500.0,0.00014794,2]
[323702848,1714168261252,-500.0,0.00014794,2]
[323702849,1714168261261,-220.61576505,0.00014794,2]
[323702850,1714168261269,-500.0,0.00014794,2]
[323702851,1714168261277,-500.0,0.00014794,2]
[323702852,1714168261285,-500.0,0.00014794,2]
[323702853,1714168261293,-500.0,0.00014794,2]
[323702854,1714168261302,-500.0,0.00014794,2]
[323702855,1714168261311,-500.0,0.00014794,2]
[323702856,1714168261320,-500.0,0.00014794,2]
[323702857,1714168261328,-500.0,0.00014794,2]
[323702858,1714168261338,-709.11,0.00014794,2]
[323702859,1714168261347,-573.99,0.00014794,2]
[323702860,1714168261356,-395.27,0.00014794,2]
[323702861,1714168261365,-500.0,0.00014794,2]
[323702862,1714168261374,-500.0,0.00014794,2]
[323702863,1714168261384,-6256.15,0.00014794,2]
[323702864,1714168261394,-763.76,0.00014794,2]
[323702865,1714168261403,-500.0,0.00014794,2]
[323702866,1714168261414,-537.61,0.00014794,2]
[323702867,1714168261424,-500.0,0.00014794,2]
[323702868,1714168261434,-513.68,0.00014794,2]
[323702869,1714168261443,-1048.28,0.00014794,2]
[323702870,1714168261454,-500.0,0.00014794,2]
[323702871,1714168261464,-500.0,0.00014794,2]
[323702872,1714168261473,-998.37,0.00014794,2]
[323702873,1714168261483,-2322.81,0.00014794,2]
[323702874,1714168261493,-557.8,0.00014794,2]
[323702875,1714168261501,-529.95,0.00014794,2]
[323702876,1714168261511,-535.33,0.00014794,2]
[323702877,1714168261520,-2084.26,0.00014794,2]
[323702878,1714168261529,-231.85374394,0.00014794,2]
[323702879,1714168261539,-500.0,0.00014794,2]
[323702880,1714168261549,-194.86744969,0.00014794,2]
[323702881,1714168261559,-500.0,0.00014794,2]
[323702882,1714168261568,-500.0,0.00014794,2]
[323702883,1714168261577,-280.16,0.00014794,2]
[323702884,1714168261586,-617.24484803,0.00014794,2]
[323702885,1714168261597,-500.0,0.00014794,2]
[323702886,1714168261608,-630.65,0.00014794,2]
[323702887,1714168261618,-583.6,0.00014794,2]
[323702888,1714168261628,-500.0,0.00014794,2]
[323702889,1714168261638,-969.38,0.00014794,2]
[323702890,1714168261647,-1520.72,0.00014794,2]
[323702891,1714168261657,-500.0,0.00014794,2]
[323702892,1714168261668,-2307.71,0.00014794,2]
[323702893,1714168261677,-500.0,0.00014794,2]
[323702894,1714168261687,-1213.91,0.00014794,2]
[323702895,1714168261697,-500.0,0.00014794,2]
[323702896,1714168261707,-21926.28,0.00014794,2]
[323702897,1714168261717,-519.31,0.00014794,2]
[323702898,1714168261727,-623.75,0.00014794,2]
[323702899,1714168261736,-634.87,0.00014794,2]
[323702900,1714168261746,-565.29,0.00014794,2]
[323702901,1714168261756,-500.0,0.00014794,2]
[323702902,1714168261765,-6336.33,0.00014794,2]
[323702903,1714168261774,-548.34,0.00014794,2]
[323702904,1714168261783,-500.0,0.00014794,2]
[323702905,1714168261794,-540.34,0.00014794,2]
[323702906,1714168261804,-619.77,0.00014794,2]